Workbook

Sheet Info

Sheet Kvalitetskrav
A2: Analytt | B2: Biological variation | D2: Referanseområde Kofstad -95 | G2: SLP nr 4/2011 | K2: Mål for BIAS % | P2: Mål for IMPRESISJON % | T2: Innkjøring av Leverandør (Verst tilfelle…) | Z2: SLP resultat 835 (MB) | AJ2: Våre resultat
K3: optimalt | L3: ønskelig B(%) | M3: Minimum | N3: Mellom instrument | P3: optimalt | Q3: ønskelig I(%) | R3: minimum | AM3: ABL PLAB | AX3: ABL MB | BA3: ABL hov
B4: CVw | C4: CVb | D4: Lav | E4: Høy | F4: Benevning | G4: Mean metodegruppe 735 | H4: Mean 835 | I4: Grense % | J4: Bio krav 2,33(0,5*CVw)+0,25√(CVw^2+CVb^2) | K4: 0,125*√(CVw2+CVb2) | L4: 0,250*√(CVw2+CVb2) | M4: 0,375*√(CVw2+CVb2) | N4: CVw / 3 | O4: Ref/16 % | P4: 0,25*CVw | Q4: 0,50*CVw | R4: 0,75*CVw | S4: CVt Basert på Ref tillatt feil (1/4*refintervall/mean intervall)*100= CVa*2 →CVa=(1/4*refintervall/mean intervall)*50 | T4: CVwd | U4: CVbd | V4: Måloppnåelse Impresisjon (CVwd) bio | W4: Måloppnåelse Impresisjon (CVbd) bio | X4: Måloppnåelse Impresisjon (Ref) (CVwd) | Y4: Måloppnåelse Impresisjon (Ref) (CVbd) | Z4: SLP vårt resultat 735 | AA4: SLP vårt resultat 735 BIAS% | AB4: Krav i forhold til SLP krav | AC4: Krav i forhold til Bio krav 2,33(0,5*CVw)+0,25√(CVw^2+CVb^2) | AD4: Vårt resultat | AE4: BIAS% i forhold til metodegruppa | AF4: Krav i forhold til Mål | AG4: Krav i forhold til SLP krav | AH4: Måloppnåelse BIAS mellom ny/gammel bio | AI4: Krav i forhold til Bio krav 2,33(0,5*CVw)+0,25√(CVw^2+CVb^2) | AJ4: Nivå Mean pasient (innkjøring) ABL 735 | AK4: Nivå Stabil CV 735 | AL4: CVa 735 (2011) | AM4: Bias (735vs835) | AN4: Bias% (735vs835) | AO4: Måloppnåelse BIAS mellom ny/gammel SLP | AP4: Måloppnåelse BIAS mellom ny/gammel bio | AQ4: Måloppnåelse BIAS mellom ny/gammel 1/16 av ref | AR4: Nivå bd | AS4: SDbd | AT4: CVbd | AU4: Måloppnåelse Impresisjon bio | AV4: Måloppnåelse Impresisjon ref | AW4: CVny<CVgammel | AX4: Nivå bd | AY4: CVbd | AZ4: Måloppnåelse Impresisjon | BA4: Nivå bd | BB4: CVbd | BC4: Måloppnåelse Impresisjon
A5: pH | B5: 3.5 | C5: 2 | D5: 7.36 | E5: 7.44 | F5: pH | G5: 7.339 | H5: 7.338 | I5: 0.5 | J5: =(2.33*(0.5*B5))+(0.25*SQRT(B5^2+C5^2)) -> 5.085282219 | K5: =0.125*(SQRT(B5^2+C5^2)) -> 0.5038911093 | L5: =0.25*(SQRT(B5^2+C5^2)) -> 1.007782219 | M5: =0.375*(SQRT(B5^2+C5^2)) -> 1.511673328 | N5: =IF(B5<>"",B5/3,"CVw mangler") -> 1.166666667 | O5: =((E5-D5)/16)/AVERAGE(D5:E5)*100 -> 0.06756756757 | P5: =0.25*B5 -> 0.875 | Q5: =0.5*B5 -> 1.75 | R5: =0.75*B5 -> 2.625 | S5: =(((E5-D5)/4)/AVERAGE(D5:E5))*50 -> 0.1351351351 | T5: 0 | U5: 0 | V5: =IF(OR(B5<> "",C5<>""),(IF(T5<P5,"Optimal",IF(T5<Q5,"Ønskelig",IF(T5<R5,"Minimum","Ikke ok")))),"Bio?") -> Optimal | W5: =IF(OR(B5<> "",C5<>""),(IF(U5<P5,"Optimal",IF(U5<Q5,"Ønskelig",IF(U5<R5,"Minimum","Ikke ok")))),"Bio?") -> Optimal | X5: =IF(T5<S5,"Ok","Ikke ok") -> Ok | Y5: =IF(U5<S5,"Ok","Ikke ok") -> Ok | Z5: 7.328 | AA5: =ABS(((G5-Z5)*100)/G5) -> 0.1498841804 | AB5: =IF(AA5<I5,"Ok","Ikke ok") -> Ok | AC5: =IF(B5<>"",IF(AA5<J5,"Ok","Ikke ok"),"Bio?") -> Ok | AD5: 7.334 | AE5: =ABS(((H5-AD5)*100)/H5) -> 0.05451076588 | AF5: =IF(B5<>"",(IF(H5<>"",(IF(AE5<K5,"Optimal",IF(AE5<L5,"Ønskelig",IF(AE5<M5,"Minimum","Ikke ok")))),"Mangler bio")),"Mangler bias") -> Optimal | AG5: =IF(AE5<I5,"Ok","Ikke ok") -> Ok | AH5: =IF(AD5<>"",(IF(B5<>"",(IF(AE5<K5,"Optimal",IF(AE5<L5,"Ønskelig",IF(AE5<M5,"Minimum","Ikke ok")))),"Mangler bio")),"Mangler bias") -> Optimal | AI5: =IF(B5<>"",IF(AE5<J5,"Ok","Ikke ok"),"Bio?") -> Ok | AJ5: 7.412 | AK5: 7.113 | AL5: 0.04 | AM5: -0.02 | AN5: =ABS(AM5*100/AJ5) -> 0.2698327037 | AO5: =IF(AN5<>"",(IF(I5<>"",(IF(AN5<I5,"Ok","Ikke ok")),"Mangler SLPgrense")),"Mangler bias") -> Ok | AP5: =IF(AN5<>"",(IF(B5<>"",(IF(AN5<K5,"Optimal",IF(AN5<L5,"Ønskelig",IF(AN5<M5,"Minimum","Ikke ok")))),"Mangler bio")),"Mangler bias") -> Optimal | AQ5: =IF(AN5<O5,"Ok","Ikke ok") -> Ikke ok | AR5: 7.113 | AT5: 0.03 | AU5: =IF(B5<>"",(IF(AT5<P5,"Optimal",IF(AT5<Q5,"Ønskelig",IF(AT5<R5,"Minimum","Ikke ok")))),"Mangler bio") -> Optimal | AV5: =IF(AT5<S5,"Ok","Ikke ok") -> Ok | AW5: =IF(AT5<=AL5,"Ok","Ikke ok") -> Ok | AY5: 0.02 | BB5: 0.01
A6: pCO2 | B6: 4.8 | C6: 5.3 | D6: 4.7 | E6: 5.9 | F6: kPa | G6: 6.15 | H6: 6.16 | I6: 4 | J6: =(2.33*(0.5*B6))+(0.25*SQRT(B6^2+C6^2)) -> 7.379631114 | K6: =0.125*(SQRT(B6^2+C6^2)) -> 0.893815557 | L6: =0.25*(SQRT(B6^2+C6^2)) -> 1.787631114 | M6: =0.375*(SQRT(B6^2+C6^2)) -> 2.681446671 | N6: 1.6 | O6: =((E6-D6)/16)/AVERAGE(D6:E6)*100 -> 1.41509434 | P6: =0.25*B6 -> 1.2 | Q6: =0.5*B6 -> 2.4 | R6: =0.75*B6 -> 3.6 | S6: =(((E6-D6)/4)/AVERAGE(D6:E6))*50 -> 2.830188679 | T6: 0.9 | U6: 2.5 | V6: Optimal | W6: Minimum | X6: =IF(T6<S6,"Ok","Ikke ok") -> Ok | Y6: =IF(U6<S6,"Ok","Ikke ok") -> Ok | Z6: 6.3 | AA6: 2.43902439 | AB6: Ok | AC6: =IF(B6<>"",IF(AA6<J6,"Ok","Ikke ok"),"Bio?") -> Ok | AD6: 6.3 | AE6: =ABS(((H6-AD6)*100)/H6) -> 2.272727273 | AF6: =IF(B6<>"",(IF(H6<>"",(IF(AE6<K6,"Optimal",IF(AE6<L6,"Ønskelig",IF(AE6<M6,"Minimum","Ikke ok")))),"Mangler bio")),"Mangler bias") -> Minimum | AG6: Ok | AH6: =IF(AD6<>"",(IF(B6<>"",(IF(AE6<K6,"Optimal",IF(AE6<L6,"Ønskelig",IF(AE6<M6,"Minimum","Ikke ok")))),"Mangler bio")),"Mangler bias") -> Minimum | AI6: Ok | AJ6: 5.403 | AK6: 1.66 | AL6: 2.45 | AM6: -0.14 | AN6: =ABS(AM6*100/AJ6) -> 2.591153063 | AO6: Ok | AP6: Minimum | AQ6: Ikke ok | AR6: 1.66 | AT6: 1.38 | AU6: Ønskelig | AV6: Ok | AW6: =IF(AT6<=AL6,"Ok","Ikke ok") -> Ok | AY6: 1.57 | BB6: 0.93
A7: pO2 | D7: 10.5 | E7: 14 | F7: kPa | G7: 9.35 | H7: 9.82 | I7: 6 | J7: 0 | K7: 0 | L7: 0 | M7: 0 | N7: CVw mangler | O7: 1.785714286 | P7: 0 | Q7: 0 | R7: 0 | S7: 3.571428571 | T7: 0.7 | U7: 2 | V7: Bio? | W7: Bio? | X7: Ok | Y7: Ok | Z7: 9.3 | AA7: 0.5347593583 | AB7: Ok | AC7: Bio? | AD7: 9.7 | AE7: 1.221995927 | AF7: Mangler bias | AG7: Ok | AH7: Mangler bio | AI7: Bio? | AJ7: 10.479 | AK7: 8.97 | AL7: 2.24 | AM7: 0.465 | AN7: =ABS(AM7*100/AJ7) -> 4.437446321 | AO7: Ok | AP7: Mangler bio | AQ7: Ikke ok | AR7: 8.86 | AT7: 2.2 | AU7: Mangler bio | AV7: Ok | AW7: Ok | AY7: 1.37 | BB7: 2.24
A8: ctHb | B8: 2.8 | C8: 6.6 | D8: 12 | E8: 16 | F8: g/dL | I8: 10 | J8: 5.054344833 | K8: 0.8961724164 | L8: 1.792344833 | M8: 2.688517249 | N8: 0.9333333333 | O8: 1.785714286 | P8: 0.7 | Q8: 1.4 | R8: 2.1 | S8: 3.571428571 | T8: 0.67 | U8: 2.2 | V8: Optimal | W8: Ikke ok | X8: Ok | Y8: Ok | AF8: Mangler bio | AH8: Mangler bias | AJ8: 12.025 | AK8: 8.22 | AL8: 1.18 | AM8: -0.255 | AN8: =ABS(AM8*100/AJ8) -> 2.120582121 | AO8: Ok | AP8: Minimum | AQ8: Ikke ok | AR8: 8.22 | AT8: 0.61 | AU8: Optimal | AV8: Ok | AW8: Ok | AY8: 0 | BB8: 0.46
A9: sO2 | D9: 95 | E9: 99 | F9: % | I9: 10 | J9: 0 | K9: 0 | L9: 0 | M9: 0 | N9: CVw mangler | O9: 0.2577319588 | P9: 0 | Q9: 0 | R9: 0 | S9: 0.5154639175 | T9: 0.05 | U9: 0.3 | V9: Bio? | W9: Bio? | X9: Ok | Y9: Ok | AC9: Bio? | AF9: Mangler bias | AH9: Mangler bias | AI9: Bio? | AJ9: 94.703 | AK9: 70.24 | AL9: 0.25 | AM9: -0.751 | AN9: =ABS(AM9*100/AJ9) -> 0.7930055014 | AO9: Ok | AP9: Mangler bio | AQ9: Ikke ok | AR9: 49.98 | AT9: 0.06 | AU9: Mangler bio | AV9: Ok | AW9: Ok | AY9: 0.07 | BB9: 0.03
A10: FO2HB | D10: 0.94 | E10: 0.99 | F10: % | J10: 0 | N10: CVw mangler | O10: 0.3238341969 | S10: 0.6476683938 | T10: 0.15 | U10: 0.5 | V10: Bio? | W10: Bio? | X10: Ok | Y10: Ok | AC10: Bio? | AF10: Mangler bias | AH10: Mangler bias | AI10: Bio? | AN10: =ABS(AM10*100/AJ10) ->  | AU10: Mangler bio | AV10: Ok | AW10: Ok
A11: FCOHb | D11: 0.5 | E11: 1.5 | F11: % | I11: 10 | J11: 0 | N11: CVw mangler | O11: 6.25 | S11: 12.5 | T11: 0.25 | U11: 3.75 | V11: Bio? | W11: Bio? | X11: Ok | Y11: Ok | AC11: Bio? | AF11: Mangler bias | AH11: Mangler bias | AI11: Bio? | AJ11: 2.028 | AK11: 5.9 | AL11: 4.85 | AM11: -0.28 | AN11: 13.80670611 | AO11: Ikke ok | AP11: Mangler bio | AQ11: Ikke ok | AR11: 5.9 | AT11: 2.1 | AU11: Mangler bio | AV11: Ok | AW11: Ok | AY11: 2.57 | BB11: 2.82
A12: MetHb | F12: % | J12: 0 | N12: CVw mangler | T12: 0.25 | U12: 2 | V12: Bio? | W12: Bio? | AC12: Bio? | AF12: Mangler bias | AH12: Mangler bias | AI12: Bio? | AU12: Mangler bio | AW12: Ok
A13: tO2 | D13: 8 | E13: 9.5 | F13: mmol/L | J13: 0 | N13: CVw mangler | O13: 1.071428571 | S13: 2.142857143 | T13: 3.75 | U13: 10 | V13: Bio? | W13: Bio? | X13: Ikke ok | Y13: Ikke ok | AC13: Bio? | AF13: Mangler bias | AH13: Mangler bias | AI13: Bio? | AJ13: 6.87 | AM13: -0.118 | AN13: 1.717612809 | AO13: Mangler SLPgrense | AP13: Mangler bio | AQ13: Ikke ok | AU13: Mangler bio | AV13: Ok | AW13: Ok
A14: cHCO3-(P)c | D14: 22 | E14: 26 | F14: mmol/L | J14: 0 | K14: 0 | L14: 0 | M14: 0 | N14: CVw mangler | O14: 1.041666667 | P14: 0 | Q14: 0 | R14: 0 | S14: 2.083333333 | V14: Bio? | W14: Bio? | X14: Ok | Y14: Ok | AC14: Bio? | AF14: Mangler bias | AH14: Mangler bias | AI14: Bio? | AU14: Mangler bio | AV14: Ok | AW14: Ok | AY14: 0.76 | BB14: 0.57
A15: cHCO3-(P,st)c | F15: mmol/L | J15: 0 | K15: 0 | L15: 0 | M15: 0 | N15: CVw mangler | P15: 0 | Q15: 0 | R15: 0 | V15: Bio? | W15: Bio? | AC15: Bio? | AF15: Mangler bias | AH15: Mangler bias | AI15: Bio? | AU15: Mangler bio | AW15: Ok
A16: SBEc | D16: -3 | E16: 3 | F16: mmol/L | J16: 0 | K16: 0 | L16: 0 | M16: 0 | N16: CVw mangler | P16: 0 | Q16: 0 | R16: 0 | V16: Bio? | W16: Bio? | AC16: Bio? | AF16: Mangler bias | AH16: Mangler bias | AI16: Bio? | AU16: Mangler bio | AW16: Ok | AY16: 35.7 | BB16: 48.02
A17: cNa+ | B17: 0.7 | C17: 1 | D17: 136 | E17: 144 | F17: mmol/L | G17: 134.5 | H17: 134.8 | I17: 2 | J17: 1.12066389 | K17: 0.1525819452 | L17: 0.3051638904 | M17: 0.4577458356 | N17: 0.2333333333 | O17: 0.3571428571 | P17: 0.175 | Q17: 0.35 | R17: 0.525 | S17: 0.7142857143 | T17: 0.29 | U17: 0.79 | V17: Ønskelig | W17: Ikke ok | X17: Ok | Y17: Ikke ok | Z17: 134 | AA17: 0.3717472119 | AB17: Ok | AC17: Ok | AD17: 135 | AE17: 0.1483679525 | AF17: Optimal | AG17: Ok | AH17: Optimal | AI17: Ok | AJ17: 137.48 | AK17: 127.5 | AL17: 0.63 | AM17: 0.65 | AN17: 0.4727960431 | AO17: Ok | AP17: Ikke ok | AQ17: Ikke ok | AR17: 127.5 | AT17: 0.41 | AU17: Minimum | AV17: Ok | AW17: Ok | AY17: 0.23 | BB17: 0.59
A18: cK+ | B18: 4.8 | C18: 5.6 | D18: 3.5 | E18: 5 | F18: mmol/L | G18: 3.32 | H18: 3.33 | I18: 4 | J18: 7.435908891 | K18: 0.9219544457 | L18: 1.843908891 | M18: 2.765863337 | N18: 1.6 | O18: 2.205882353 | P18: 1.2 | Q18: 2.4 | R18: 3.6 | S18: 4.411764706 | T18: 0.5 | U18: 1.88 | V18: Optimal | W18: Ønskelig | X18: Ok | Y18: Ok | Z18: 3.3 | AA18: 0.6024096386 | AB18: Ok | AC18: Ok | AD18: 3.3 | AE18: 0.9009009009 | AF18: Optimal | AG18: Ok | AH18: Optimal | AI18: Ok | AJ18: 3.965 | AK18: 1.8 | AL18: 0 | AM18: 0.072 | AN18: 1.815889029 | AO18: Ok | AP18: Ønskelig | AQ18: Ok | AR18: 1.8 | AT18: 0 | AU18: Optimal | AV18: Ok | AW18: Ok | AY18: 0.38 | BB18: 0.36
A19: cCa2+ | B19: 1.9 | C19: 2.8 | D19: 1.15 | E19: 1.35 | F19: mmol/L | G19: 1.18 | H19: 1.19 | I19: 3 | J19: 3.059446216 | K19: 0.4229731079 | L19: 0.8459462158 | M19: 1.268919324 | N19: 0.6333333333 | O19: 1 | P19: 0.475 | Q19: 0.95 | R19: 1.425 | S19: 2 | T19: 0.64 | U19: 1.6 | V19: Ønskelig | W19: Ikke ok | X19: Ok | Y19: Ok | Z19: 1.18 | AA19: 0 | AB19: Ok | AC19: Ok | AD19: 1.18 | AE19: 0.8403361345 | AF19: Ønskelig | AG19: Ok | AH19: Ønskelig | AI19: Ok | AJ19: 1.191 | AK19: 0.53 | AL19: 4.99 | AM19: -0.01 | AN19: 0.8396305626 | AO19: Ok | AP19: Ønskelig | AQ19: Ok | AR19: 0.53 | AT19: 0.9 | AU19: Ønskelig | AV19: Ok | AW19: Ok | AY19: 0.92 | BB19: 0.73
A20: cCl- | B20: 1.2 | C20: 1.5 | D20: 98 | E20: 106 | F20: mmol/L | G20: 94.1 | H20: 93.9 | I20: 3 | J20: 1.878234318 | K20: 0.2401171589 | L20: 0.4802343178 | M20: 0.7203514767 | N20: 0.4 | O20: 0.4901960784 | P20: 0.3 | Q20: 0.6 | R20: 0.9 | S20: 0.9803921569 | T20: 0.38 | U20: 1.36 | V20: Ønskelig | W20: Ikke ok | X20: Ok | Y20: Ikke ok | Z20: 95 | AA20: 0.9564293305 | AB20: Ok | AC20: Ok | AD20: 93 | AE20: 0.9584664537 | AF20: Ikke ok | AG20: Ok | AH20: Ikke ok | AI20: Ok | AJ20: 105.8 | AK20: 67.4 | AL20: 1.58 | AN20: 0 | AO20: Ok | AP20: Optimal | AQ20: Ok | AR20: 67.4 | AU20: Optimal | AV20: Ok | AW20: Ok | AY20: 0.75 | BB20: 0.56
A21: cCa2+(7.4)c | D21: 1.15 | E21: 1.35 | F21: mmol/L | G21: 1.14 | H21: 1.15 | I21: 3 | J21: 0 | K21: 0 | L21: 0 | M21: 0 | N21: CVw mangler | O21: 1 | P21: 0 | Q21: 0 | R21: 0 | S21: 2 | V21: Bio? | W21: Bio? | X21: Ok | Y21: Ok | Z21: 1.14 | AA21: 0 | AB21: Ok | AC21: Bio? | AD21: 1.14 | AE21: 0.8695652174 | AF21: Mangler bias | AG21: Ok | AH21: Mangler bio | AI21: Bio? | AJ21: 1.226 | AM21: 0.004 | AN21: 0.3262642741 | AO21: Ok | AP21: Mangler bio | AQ21: Ok | AU21: Mangler bio | AV21: Ok | AW21: Ok
A22: Anion gab, K+c | D22: 11 | E22: 17 | F22: mmol/L | J22: 0 | K22: 0 | L22: 0 | M22: 0 | N22: CVw mangler | O22: 2.678571429 | P22: 0 | Q22: 0 | R22: 0 | S22: 5.357142857 | V22: Bio? | W22: Bio? | X22: Ok | Y22: Ok | AC22: Bio? | AF22: Mangler bias | AH22: Mangler bias | AI22: Bio? | AM22: -0.208 | AU22: Mangler bio | AV22: Ok | AW22: Ok | AY22: 0.76 | BB22: 1.27
A23: cGlu | B23: 5.7 | C23: 6.9 | D23: 4 | E23: 6 | F23: mmol/L | G23: 11.82 | H23: 11.9 | I23: 4.5 | J23: 8.877965084 | K23: 1.118732542 | L23: 2.237465084 | M23: 3.356197625 | N23: 1.9 | O23: 2.5 | P23: 1.425 | Q23: 2.85 | R23: 4.275 | S23: 5 | T23: 1.17 | U23: 3.67 | V23: Optimal | W23: Minimum | X23: Ok | Y23: Ok | Z23: 12.4 | AA23: 4.906937394 | AB23: Ikke ok | AC23: Ok | AD23: 11.7 | AE23: 1.680672269 | AF23: Ønskelig | AG23: Ok | AH23: Ønskelig | AI23: Ok | AJ23: 7.59 | AK23: 1.52 | AL23: 3.1 | AM23: -0.032 | AN23: 0.4216073781 | AO23: Ok | AP23: Optimal | AQ23: Ok | AR23: 1.52 | AT23: 3.29 | AU23: Minimum | AV23: Ok | AW23: Ikke ok | AY23: 1.22 | BB23: 1.19
A24: ctBil | F24: µmol/L | J24: 0 | K24: 0 | L24: 0 | M24: 0 | N24: CVw mangler | P24: 0 | Q24: 0 | R24: 0 | T24: 0 | U24: 0 | V24: Bio? | W24: Bio? | AC24: Bio? | AF24: Mangler bias | AH24: Mangler bias | AI24: Bio? | AU24: Mangler bio | AW24: Ok
A25: cLac | B25: 27.2 | C25: 16.7 | D25: 0.5 | E25: 1.6 | F25: mmol/L | G25: 1.34 | H25: 1.34 | I25: 6 | J25: 39.66738751 | K25: 3.989693754 | L25: 7.979387508 | M25: 11.96908126 | N25: 9.066666667 | O25: 6.547619048 | P25: 6.8 | Q25: 13.6 | R25: 20.4 | S25: 13.0952381 | T25: 2 | U25: 7.5 | V25: Optimal | W25: Ønskelig | X25: Ok | Y25: Ok | Z25: 1.4 | AA25: 4.47761194 | AB25: Ok | AC25: Ok | AD25: 1.3 | AE25: 2.985074627 | AF25: Optimal | AG25: Ok | AH25: Optimal | AI25: Ok | AJ25: 1.226 | AK25: 4.36 | AL25: 1.84 | AN25: 0 | AO25: Ok | AP25: Optimal | AQ25: Ok | AR25: 4.36 | AT25: 2.09 | AU25: Optimal | AV25: Ok | AW25: Ikke ok | AY25: 4.32 | BB25: 1.93
A26: cCreat | B26: 5.3 | C26: 14.2 | D26: 60 | E26: 100 | F26: µmol/L | G26: 279.5 | H26: na | I26: 8 | J26: 9.963711659 | K26: 1.89460583 | L26: 3.789211659 | M26: 5.683817489 | N26: 1.766666667 | O26: 3.125 | P26: 1.325 | Q26: 2.65 | R26: 3.975 | S26: 6.25 | T26: 1.8 | U26: 3.1 | V26: Ønskelig | W26: Minimum | X26: Ok | Y26: Ok | Z26: na | AD26: na | AJ26: 127.118 | AK26: 261 | AN26: 0 | AO26: Ok | AP26: Optimal | AQ26: Ok | AR26: 261 | AU26: Optimal | AV26: Ok | AW26: Ok | BB26: 3.05
J27: 0 | K27: 0 | L27: 0 | M27: 0 | N27: CVw mangler | P27: 0 | Q27: 0 | R27: 0 | V27: Bio? | W27: Bio? | AC27: Bio? | AF27: Mangler bias | AH27: Mangler bias | AI27: Bio? | AU27: Mangler bio | AW27: Ok
B29: Biological variation | D29: Referanseområde Kofstad -95 | G29: SLP nr … | K29: Mål for BIAS % | P29: Mål for IMPRESISJON %
K30: optimalt | L30: ønskelig B(%) | M30: Minimum | N30: Mellom instrument | P30: optimalt | Q30: ønskelig I(%) | R30: minimum
B31: CVw | C31: CVb | D31: Lav | E31: Høy | F31: Benevning | G31: Mean metodegruppe 735 | H31: Mean 835 | I31: Grense % | J31: Bio krav 2,33(0,5*CVw)+0,25√(CVw^2+CVb^2) | K31: 0,125*√(CVw2+CVb2) | L31: 0,250*√(CVw2+CVb2) | M31: 0,375*√(CVw2+CVb2) | N31: CVw / 3 | O31: Ref/16 % | P31: 0,25*CVw | Q31: 0,50*CVw | R31: 0,75*CVw | S31: CVt Basert på Ref tillatt feil (1/4*refintervall/mean intervall)*100= CVa*2 →CVa=(1/4*refintervall/mean intervall)*50 | AK31: Nivå Stabil CV 735 | AL31: CVa 735 (2011) | AR31: Nivå bd | AS31: SDbd | AT31: CVbd | AU31: Måloppnåelse Impresisjon bio | AV31: Måloppnåelse Impresisjon ref | AW31: CVny<CVgammel
A32: pH | B32: 3.5 | C32: 2 | D32: 7.36 | E32: 7.44 | F32: pH | G32: 7.339 | H32: 7.338 | I32: 0.5 | J32: =(2.33*(0.5*B32))+(0.25*SQRT(B32^2+C32^2)) -> 5.085282219 | K32: =0.125*(SQRT(B32^2+C32^2)) -> 0.5038911093 | L32: =0.25*(SQRT(B32^2+C32^2)) -> 1.007782219 | M32: =0.375*(SQRT(B32^2+C32^2)) -> 1.511673328 | N32: =IF(B32<>"",B32/3,"CVw mangler") -> 1.166666667 | O32: =((E32-D32)/16)/AVERAGE(D32:E32)*100 -> 0.06756756757 | P32: =0.25*B32 -> 0.875 | Q32: =0.5*B32 -> 1.75 | R32: =0.75*B32 -> 2.625 | S32: =(((E32-D32)/4)/AVERAGE(D32:E32))*50 -> 0.1351351351 | AK32: 7.586 | AL32: 0.1 | AR32: 7.586 | AT32: 0.02 | AU32: =IF(B32<>"",(IF(AT32<P32,"Optimal",IF(AT32<Q32,"Ønskelig",IF(AT32<R32,"Minimum","Ikke ok")))),"Mangler bio") -> Optimal | AV32: =IF(AT32<S32,"Ok","Ikke ok") -> Ok | AW32: =IF(AT32<=AL32,"Ok","Ikke ok") -> Ok
A33: pCO2 | B33: 4.8 | C33: 5.3 | D33: 4.7 | E33: 5.9 | F33: kPa | G33: 6.15 | H33: 6.16 | I33: 4 | J33: =(2.33*(0.5*B33))+(0.25*SQRT(B33^2+C33^2)) -> 7.379631114 | K33: =0.125*(SQRT(B33^2+C33^2)) -> 0.893815557 | L33: =0.25*(SQRT(B33^2+C33^2)) -> 1.787631114 | M33: =0.375*(SQRT(B33^2+C33^2)) -> 2.681446671 | N33: 1.6 | O33: =((E33-D33)/16)/AVERAGE(D33:E33)*100 -> 1.41509434 | P33: =0.25*B33 -> 1.2 | Q33: =0.5*B33 -> 2.4 | R33: =0.75*B33 -> 3.6 | S33: =(((E33-D33)/4)/AVERAGE(D33:E33))*50 -> 2.830188679 | AK33: 8.75 | AL33: 1.7 | AR33: 8.75 | AT33: 1.22 | AU33: Ønskelig | AV33: Ok | AW33: =IF(AT33<=AL33,"Ok","Ikke ok") -> Ok
A34: pO2 | D34: 10.5 | E34: 14 | F34: kPa | G34: 9.35 | H34: 9.82 | I34: 6 | J34: 0 | K34: =0.125*(SQRT(B34^2+C34^2)) -> 0 | L34: =0.25*(SQRT(B34^2+C34^2)) -> 0 | M34: =0.375*(SQRT(B34^2+C34^2)) -> 0 | N34: CVw mangler | O34: 1.785714286 | P34: =0.25*B34 -> 0 | Q34: =0.5*B34 -> 0 | R34: =0.75*B34 -> 0 | S34: 3.571428571 | AK34: 19.4 | AL34: 1.89 | AR34: 19.4 | AT34: 1.84 | AU34: Mangler bio | AV34: Ok | AW34: Ok
A35: ctHb | B35: 2.8 | C35: 6.6 | D35: 12 | E35: 16 | F35: g/dL | I35: 10 | J35: 5.054344833 | K35: =0.125*(SQRT(B35^2+C35^2)) -> 0.8961724164 | L35: =0.25*(SQRT(B35^2+C35^2)) -> 1.792344833 | M35: =0.375*(SQRT(B35^2+C35^2)) -> 2.688517249 | N35: 0.9333333333 | O35: 1.785714286 | P35: =0.25*B35 -> 0.7 | Q35: =0.5*B35 -> 1.4 | R35: =0.75*B35 -> 2.1 | S35: 3.571428571 | AK35: 19.7 | AL35: 0.98 | AR35: 19.7 | AT35: 0.45 | AU35: Optimal | AV35: Ok | AW35: Ok
A36: sO2 | D36: 95 | E36: 99 | F36: % | I36: 10 | J36: 0 | K36: =0.125*(SQRT(B36^2+C36^2)) -> 0 | L36: =0.25*(SQRT(B36^2+C36^2)) -> 0 | M36: =0.375*(SQRT(B36^2+C36^2)) -> 0 | N36: CVw mangler | O36: 0.2577319588 | P36: =0.25*B36 -> 0 | Q36: =0.5*B36 -> 0 | R36: =0.75*B36 -> 0 | S36: 0.5154639175 | AK36: 70.25 | AL36: 0.25 | AR36: 70.25 | AT36: 0 | AU36: Mangler bio | AV36: Ok | AW36: Ok
A37: FO2HB | D37: 0.94 | E37: 0.99 | F37: % | J37: 0 | N37: CVw mangler | O37: 0.3238341969 | S37: 0.6476683938 | AU37: Mangler bio | AV37: Ok | AW37: Ok
A38: FCOHb | D38: 0.5 | E38: 1.5 | F38: % | I38: 10 | J38: 0 | N38: CVw mangler | O38: 6.25 | S38: 12.5 | AK38: 20.72 | AL38: 1.23 | AR38: 20.72 | AT38: 0.32 | AU38: Mangler bio | AV38: Ok | AW38: Ok
A39: MetHb | F39: % | J39: 0 | N39: CVw mangler | AU39: Mangler bio | AW39: Ok
A40: tO2 | D40: 8 | E40: 9.5 | F40: mmol/L | J40: 0 | N40: CVw mangler | O40: 1.071428571 | S40: 2.142857143 | AU40: Mangler bio | AV40: Ok | AW40: Ok
A41: cHCO3-(P)c | D41: 22 | E41: 26 | F41: mmol/L | J41: 0 | K41: =0.125*(SQRT(B41^2+C41^2)) -> 0 | L41: =0.25*(SQRT(B41^2+C41^2)) -> 0 | M41: =0.375*(SQRT(B41^2+C41^2)) -> 0 | N41: CVw mangler | O41: 1.041666667 | P41: =0.25*B41 -> 0 | Q41: =0.5*B41 -> 0 | R41: =0.75*B41 -> 0 | S41: 2.083333333 | AU41: Mangler bio | AV41: Ok | AW41: Ok
A42: cHCO3-(P,st)c | F42: mmol/L | J42: 0 | K42: 0 | L42: 0 | M42: 0 | N42: CVw mangler | P42: 0 | Q42: 0 | R42: 0 | AU42: Mangler bio | AW42: Ok
A43: SBEc | D43: -3 | E43: 3 | F43: mmol/L | J43: 0 | K43: 0 | L43: 0 | M43: 0 | N43: CVw mangler | P43: 0 | Q43: 0 | R43: 0 | AU43: Mangler bio | AW43: Ok
A44: cNa+ | B44: 0.7 | C44: 1 | D44: 136 | E44: 144 | F44: mmol/L | G44: 134.5 | H44: 134.8 | I44: 2 | J44: 1.12066389 | K44: 0.1525819452 | L44: 0.3051638904 | M44: 0.4577458356 | N44: 0.2333333333 | O44: 0.3571428571 | P44: 0.175 | Q44: 0.35 | R44: 0.525 | S44: 0.7142857143 | AK44: 159.7 | AL44: 0.57 | AR44: 159.7 | AT44: 0.31 | AU44: Ønskelig | AV44: Ok | AW44: Ok
A45: cK+ | B45: 4.8 | C45: 5.6 | D45: 3.5 | E45: 5 | F45: mmol/L | G45: 3.32 | H45: 3.33 | I45: 4 | J45: 7.435908891 | K45: 0.9219544457 | L45: 1.843908891 | M45: 2.765863337 | N45: 1.6 | O45: 2.205882353 | P45: 1.2 | Q45: 2.4 | R45: 3.6 | S45: 4.411764706 | AK45: 5.49 | AL45: 0.68 | AR45: 5.49 | AT45: 0.34 | AU45: Optimal | AV45: Ok | AW45: Ok
A46: cCa2+ | B46: 1.9 | C46: 2.8 | D46: 1.15 | E46: 1.35 | F46: mmol/L | G46: 1.18 | H46: 1.19 | I46: 3 | J46: 3.059446216 | K46: 0.4229731079 | L46: 0.8459462158 | M46: 1.268919324 | N46: 0.6333333333 | O46: 1 | P46: 0.475 | Q46: 0.95 | R46: 1.425 | S46: 2 | AK46: 1.043 | AL46: 1.76 | AR46: 1.043 | AT46: 0.8 | AU46: Ønskelig | AV46: Ok | AW46: Ok
A47: cCl- | B47: 1.2 | C47: 1.5 | D47: 98 | E47: 106 | F47: mmol/L | G47: 94.1 | H47: 93.9 | I47: 3 | J47: 1.878234318 | K47: 0.2401171589 | L47: 0.4802343178 | M47: 0.7203514767 | N47: 0.4 | O47: 0.4901960784 | P47: 0.3 | Q47: 0.6 | R47: 0.9 | S47: 0.9803921569 | AK47: 120.8 | AL47: 1.09 | AR47: 120.8 | AU47: Optimal | AV47: Ok | AW47: Ok
A48: cCa2+(7.4)c | D48: 1.15 | E48: 1.35 | F48: mmol/L | G48: 1.14 | H48: 1.15 | I48: 3 | J48: 0 | K48: 0 | L48: 0 | M48: 0 | N48: CVw mangler | O48: 1 | P48: 0 | Q48: 0 | R48: 0 | S48: 2 | AU48: Mangler bio | AV48: Ok | AW48: Ok
A49: Anion gab, K+c | D49: 11 | E49: 17 | F49: mmol/L | J49: 0 | K49: 0 | L49: 0 | M49: 0 | N49: CVw mangler | O49: 2.678571429 | P49: 0 | Q49: 0 | R49: 0 | S49: 5.357142857 | AU49: Mangler bio | AV49: Ok | AW49: Ok
A50: cGlu | B50: 5.7 | C50: 6.9 | D50: 4 | E50: 6 | F50: mmol/L | G50: 11.82 | H50: 11.9 | I50: 4.5 | J50: 8.877965084 | K50: 1.118732542 | L50: 2.237465084 | M50: 3.356197625 | N50: 1.9 | O50: 2.5 | P50: 1.425 | Q50: 2.85 | R50: 4.275 | S50: 5 | AK50: 14.09 | AL50: 1.17 | AR50: 14.09 | AT50: 1.39 | AU50: Optimal | AV50: Ok | AW50: Ikke ok
A51: ctBil | F51: µmol/L | J51: 0 | K51: 0 | L51: 0 | M51: 0 | N51: CVw mangler | P51: 0 | Q51: 0 | R51: 0 | AU51: Mangler bio | AW51: Ok
A52: cLac | B52: 27.2 | C52: 16.7 | D52: 0.5 | E52: 1.6 | F52: mmol/L | G52: 1.34 | H52: 1.34 | I52: 6 | J52: 39.66738751 | K52: 3.989693754 | L52: 7.979387508 | M52: 11.96908126 | N52: 9.066666667 | O52: 6.547619048 | P52: 6.8 | Q52: 13.6 | R52: 20.4 | S52: 13.0952381 | AK52: 10.33 | AL52: 2.4 | AR52: 10.33 | AT52: 4.09 | AU52: Optimal | AV52: Ok | AW52: Ikke ok
A53: cCreat | B53: 5.3 | C53: 14.2 | D53: 60 | E53: 100 | F53: µmol/L | G53: 279.5 | H53: na | I53: 8 | J53: 9.963711659 | K53: 1.89460583 | L53: 3.789211659 | M53: 5.683817489 | N53: 1.766666667 | O53: 3.125 | P53: 1.325 | Q53: 2.65 | R53: 3.975 | S53: 6.25 | AK53: 520 | AR53: 520 | AU53: Optimal | AV53: Ok | AW53: Ok
J54: 0 | K54: 0 | L54: 0 | M54: 0 | N54: CVw mangler | P54: 0 | Q54: 0 | R54: 0 | AU54: Mangler bio | AW54: Ok

Sheet Bias SLP
A1: Prøve 1
A2: Analytt | B2: Biological variation | D2: SLP nr 4/2011 | E2: Mål for BIAS % | H2: SLP resultat 835 (MB)
E3: optimalt | F3: ønskelig B(%) | G3: Minimum
B4: CVw | C4: CVb | D4: Mean 835 | E4: 0,125*√(CVw2+CVb2) | F4: 0,250*√(CVw2+CVb2) | G4: 0,375*√(CVw2+CVb2) | H4: Vårt resultat | I4: BIAS% i forhold til metodegruppa | J4: Krav i forhold til Mål
A5: pH | B5: 3.5 | C5: 2 | D5: 7.157 | E5: =0.125*(SQRT(B5^2+C5^2)) -> 0.5038911093 | F5: =0.25*(SQRT(B5^2+C5^2)) -> 1.007782219 | G5: =0.375*(SQRT(B5^2+C5^2)) -> 1.511673328 | H5: 7.154 | I5: =ABS(((D5-H5)*100)/D5) -> 0.04191700433 | J5: =IF(B5<>"",(IF(D5<>"",(IF(I5<E5,"Optimal",IF(I5<F5,"Ønskelig",IF(I5<G5,"Minimum","Ikke ok")))),"Mangler bio")),"Mangler bias") -> Optimal
A6: pCO2 | B6: 4.8 | C6: 5.3 | D6: 8.19 | E6: =0.125*(SQRT(B6^2+C6^2)) -> 0.893815557 | F6: =0.25*(SQRT(B6^2+C6^2)) -> 1.787631114 | G6: =0.375*(SQRT(B6^2+C6^2)) -> 2.681446671 | H6: 8.3 | I6: 1.343101343 | J6: Ønskelig
A7: cNa+ | B7: 0.7 | C7: 1 | D7: 119.1 | E7: 0.1525819452 | F7: 0.3051638904 | G7: 0.4577458356 | H7: 119 | I7: 0.08396305626 | J7: Optimal
A8: cK+ | B8: 4.8 | C8: 5.6 | D8: 2 | E8: 0.9219544457 | F8: 1.843908891 | G8: 2.765863337 | H8: 2 | I8: 0 | J8: Optimal
A9: cCa2+ | B9: 1.9 | C9: 2.8 | D9: 1.7 | E9: 0.4229731079 | F9: 0.8459462158 | G9: 1.268919324 | H9: 1.69 | I9: 0.5882352941 | J9: Ønskelig
A10: cCl- | B10: 1.2 | C10: 1.5 | D10: 78.5 | E10: 0.2401171589 | F10: 0.4802343178 | G10: 0.7203514767 | H10: 76 | I10: 3.184713376 | J10: Ikke ok
A11: cGlu | B11: 5.7 | C11: 6.9 | D11: 21.14 | E11: 1.118732542 | F11: 2.237465084 | G11: 3.356197625 | H11: 21 | I11: 0.6622516556 | J11: Optimal
A12: cLac | B12: 27.2 | C12: 16.7 | D12: 14.16 | E12: 3.989693754 | F12: 7.979387508 | G12: 11.96908126 | H12: 13.5 | I12: 4.661016949 | J12: Ønskelig
A14: Prøve 2
A15: Analytt | B15: Biological variation | D15: SLP nr 4/2011 | E15: Mål for BIAS % | H15: SLP resultat 835 (MB)
E16: optimalt | F16: ønskelig B(%) | G16: Minimum
B17: CVw | C17: CVb | D17: Mean 835 | E17: 0,125*√(CVw2+CVb2) | F17: 0,250*√(CVw2+CVb2) | G17: 0,375*√(CVw2+CVb2) | H17: Vårt resultat | I17: BIAS% i forhold til metodegruppa | J17: Krav i forhold til Mål
A18: pH | B18: 3.5 | C18: 2 | D18: 7.338 | E18: =0.125*(SQRT(B18^2+C18^2)) -> 0.5038911093 | F18: =0.25*(SQRT(B18^2+C18^2)) -> 1.007782219 | G18: =0.375*(SQRT(B18^2+C18^2)) -> 1.511673328 | H18: 7.334 | I18: =ABS(((D18-H18)*100)/D18) -> 0.05451076588 | J18: =IF(B18<>"",(IF(D18<>"",(IF(I18<E18,"Optimal",IF(I18<F18,"Ønskelig",IF(I18<G18,"Minimum","Ikke ok")))),"Mangler bio")),"Mangler bias") -> Optimal
A19: pCO2 | B19: 4.8 | C19: 5.3 | D19: 6.16 | E19: =0.125*(SQRT(B19^2+C19^2)) -> 0.893815557 | F19: =0.25*(SQRT(B19^2+C19^2)) -> 1.787631114 | G19: =0.375*(SQRT(B19^2+C19^2)) -> 2.681446671 | H19: 6.3 | I19: 2.272727273 | J19: Minimum
A20: cNa+ | B20: 0.7 | C20: 1 | D20: 134.8 | E20: 0.1525819452 | F20: 0.3051638904 | G20: 0.4577458356 | H20: 135 | I20: 0.1483679525 | J20: Optimal
A21: cK+ | B21: 4.8 | C21: 5.6 | D21: 3.33 | E21: 0.9219544457 | F21: 1.843908891 | G21: 2.765863337 | H21: 3.3 | I21: 0.9009009009 | J21: Optimal
A22: cCa2+ | B22: 1.9 | C22: 2.8 | D22: 1.19 | E22: 0.4229731079 | F22: 0.8459462158 | G22: 1.268919324 | H22: 1.18 | I22: 0.8403361345 | J22: Ønskelig
A23: cCl- | B23: 1.2 | C23: 1.5 | D23: 93.9 | E23: 0.2401171589 | F23: 0.4802343178 | G23: 0.7203514767 | H23: 93 | I23: 0.9584664537 | J23: Ikke ok
A24: cGlu | B24: 5.7 | C24: 6.9 | D24: 11.9 | E24: 1.118732542 | F24: 2.237465084 | G24: 3.356197625 | H24: 11.7 | I24: 1.680672269 | J24: Ønskelig
A25: cLac | B25: 27.2 | C25: 16.7 | D25: 1.34 | E25: 3.989693754 | F25: 7.979387508 | G25: 11.96908126 | H25: 1.3 | I25: 2.985074627 | J25: Optimal
A27: Prøve 3
A28: Analytt | B28: Biological variation | D28: SLP nr 4/2011 | E28: Mål for BIAS % | H28: SLP resultat 835 (MB)
E29: optimalt | F29: ønskelig B(%) | G29: Minimum
B30: CVw | C30: CVb | D30: Mean 835 | E30: 0,125*√(CVw2+CVb2) | F30: 0,250*√(CVw2+CVb2) | G30: 0,375*√(CVw2+CVb2) | H30: Vårt resultat | I30: BIAS% i forhold til metodegruppa | J30: Krav i forhold til Mål
A31: pH | B31: 3.5 | C31: 2 | D31: 7.623 | E31: =0.125*(SQRT(B31^2+C31^2)) -> 0.5038911093 | F31: =0.25*(SQRT(B31^2+C31^2)) -> 1.007782219 | G31: =0.375*(SQRT(B31^2+C31^2)) -> 1.511673328 | H31: 7.62 | I31: =ABS(((D31-H31)*100)/D31) -> 0.03935458481 | J31: =IF(B31<>"",(IF(D31<>"",(IF(I31<E31,"Optimal",IF(I31<F31,"Ønskelig",IF(I31<G31,"Minimum","Ikke ok")))),"Mangler bio")),"Mangler bias") -> Optimal
A32: pCO2 | B32: 4.8 | C32: 5.3 | D32: 2.8 | E32: =0.125*(SQRT(B32^2+C32^2)) -> 0.893815557 | F32: =0.25*(SQRT(B32^2+C32^2)) -> 1.787631114 | G32: =0.375*(SQRT(B32^2+C32^2)) -> 2.681446671 | H32: 2.9 | I32: 3.571428571 | J32: Ikke ok
A33: cNa+ | B33: 0.7 | C33: 1 | D33: 160.1 | E33: 0.1525819452 | F33: 0.3051638904 | G33: 0.4577458356 | H33: 160 | I33: 0.0624609619 | J33: Optimal
A34: cK+ | B34: 4.8 | C34: 5.6 | D34: 5.74 | E34: 0.9219544457 | F34: 1.843908891 | G34: 2.765863337 | H34: 5.7 | I34: 0.6968641115 | J34: Optimal
A35: cCa2+ | B35: 1.9 | C35: 2.8 | D35: 0.47 | E35: 0.4229731079 | F35: 0.8459462158 | G35: 1.268919324 | H35: 0.49 | I35: 4.255319149 | J35: Ikke ok
A36: cCl- | B36: 1.2 | C36: 1.5 | D36: 118 | E36: 0.2401171589 | F36: 0.4802343178 | G36: 0.7203514767 | H36: 118 | I36: 0 | J36: Optimal
A37: cGlu | B37: 5.7 | C37: 6.9 | D37: 2.52 | E37: 1.118732542 | F37: 2.237465084 | G37: 3.356197625 | H37: 2.5 | I37: 0.7936507937 | J37: Optimal
A38: cLac | B38: 27.2 | C38: 16.7 | D38: 1.34 | E38: 3.989693754 | F38: 7.979387508 | G38: 11.96908126 | H38: 1.3 | I38: 2.985074627 | J38: Optimal

Sheet Bias 735vs835
A2: Analytt | B2: Våre resultat
B3: ABL 735 MB | E3: KRAV ≤ ⅓∙CVagammel metode | F3: ABL 835 MB
B4: Nivå Mean pasient (innkjøring) ABL 735 | C4: Nivå Stabil CV 735 | D4: CVa 735 (2011) | F4: Nivå Mean pasient (innkjøring) ABL 835 MB | G4: %Bias | H4: Måloppnåelse Bias
A5: pO2 | B5: 10.479 | C5: 8.97 | D5: 2.24 | E5: =D5/3 -> 0.7466666667 | F5: 10.74625 | G5: =ABS((F5-B5)*100/B5) -> 2.550338773 | H5: =IF(G5<=E5,"Ok","Ikke Ok") -> Ikke Ok
A6: sO2 | B6: 94.703 | C6: 70.24 | D6: 0.25 | E6: =D6/3 -> 0.08333333333 | F6: 93.885 | G6: =ABS((F6-B6)*100/B6) -> 0.8637529962 | H6: =IF(G6<=E6,"Ok","Ikke Ok") -> Ikke Ok
A7: ctHb | B7: 12.025 | C7: 8.218 | D7: 1.18 | E7: =D7/3 -> 0.3933333333 | F7: 11.863 | G7: =ABS((F7-B7)*100/B7) -> 1.347193347 | H7: =IF(G7<=E7,"Ok","Ikke Ok") -> Ikke Ok
A8: FCOHb | B8: 2.028 | C8: 5.9 | D8: 4.85 | E8: =D8/3 -> 1.616666667 | F8: 1.848 | G8: =ABS((F8-B8)*100/B8) -> 8.875739645 | H8: =IF(G8<=E8,"Ok","Ikke Ok") -> Ikke Ok

Sheet Bias mellom instrument
A3: Analytt | B3: Biological variation | C3: Våre resultat
C4: ABL 735 MB | F4: KRAV ≤ ⅓∙CVw evt ≤ ⅓∙CVagammel metode | G4: ABL 835 MB | H4: ABL PLAB | K4: ABL HOV
B5: CVw | C5: Nivå Mean pasient (innkjøring) ABL 735 | D5: Nivå Stabil CV 735 | E5: CVa 735 (2011) | G5: Nivå bd | H5: Nivå bd | I5: Bias | J5: Måloppnåelse Bias | K5: Nivå bd | L5: Bias | M5: Måloppnåelse Bias
A6: pH | B6: 3.5 | C6: 7.412 | D6: 7.586 | E6: 0.0958 | F6: =IF(B6<>"",B6/3,E6/3) -> 1.166666667 | G6: 7.4057 | H6: 7.409725 | I6: =ABS((H6-$G6)*100/$G6) -> 0.05435002768 | J6: =IF(I6<=$F6,"Ok","Ikke Ok") -> Ok | K6: 7.409125 | L6: =ABS((K6-$G6)*100/$G6) -> 0.0462481602 | M6: =IF(L6<=$F6,"Ok","Ikke Ok") -> Ok
A7: pCO2 | B7: 4.8 | C7: 5.403 | D7: 8.748 | E7: 1.699 | F7: =IF(B7<>"",B7/3,E7/3) -> 1.6 | G7: 5.358 | H7: 5.2635 | I7: =ABS((H7-$G7)*100/$G7) -> 1.763717805 | J7: =IF(I7<=$F7,"Ok","Ikke Ok") -> Ikke Ok | K7: 5.242 | L7: =ABS((K7-$G7)*100/$G7) -> 2.164986935 | M7: =IF(L7<=$F7,"Ok","Ikke Ok") -> Ikke Ok
A8: pO2 | C8: 10.479 | D8: 8.969 | E8: 2.24 | F8: 0.7466666667 | G8: 10.74625 | H8: 10.9435 | I8: 1.83552402 | J8: Ikke Ok | K8: 11.13625 | L8: 3.629172967 | M8: Ikke Ok
A9: ctHb | B9: 2.8 | C9: 12.025 | D9: 8.218 | E9: 1.18 | F9: 0.9333333333 | G9: 11.8625 | H9: 11.77 | I9: 0.779768177 | J9: Ok | K9: 11.7075 | L9: 1.306638567 | M9: Ikke Ok
A10: sO2 | C10: 94.703 | D10: 70.25 | E10: 0.25 | F10: 0.08333333333 | G10: 93.88461538 | H10: 93.95128205 | I10: 0.07100914926 | J10: Ok | K10: 93.93333333 | L10: 0.05189130138 | M10: Ok
A11: FCOHb | C11: 2.028 | D11: 5.9 | E11: 4.85 | F11: 1.616666667 | G11: 1.8475 | H11: 1.7475 | I11: 5.412719892 | J11: Ikke Ok | K11: 1.6025 | L11: 13.26116373 | M11: Ikke Ok
A12: cNa+ | B12: 0.7 | C12: 137.48 | D12: 127.5 | E12: 0.633 | F12: 0.2333333333 | G12: 138.1 | H12: 138.125 | I12: 0.01810282404 | J12: Ok | K12: 139.075 | L12: 0.7060101376 | M12: Ikke Ok
A13: cK+ | B13: 4.8 | C13: 3.965 | D13: 1.8 | E13: 0 | F13: 1.6 | G13: 4.025 | H13: 4.0375 | I13: 0.3105590062 | J13: Ok | K13: 3.975 | L13: 1.242236025 | M13: Ok
A14: cCa2+ | B14: 1.9 | C14: 1.191 | D14: 1.043 | E14: 1.764 | F14: 0.6333333333 | G14: 1.18425 | H14: 1.18075 | I14: 0.295545704 | J14: Ok | K14: 1.181 | L14: 0.2744352966 | M14: Ok
A15: cCl- | B15: 1.2 | C15: 105.8 | D15: 120.8 | E15: 1.091 | F15: 0.4 | G15: 104.35 | K15: 104.9 | L15: 0.5270723527 | M15: Ikke Ok
A16: cGlu | B16: 5.7 | C16: 7.59 | F16: 1.9 | G16: 7.476923077 | H16: 7.382051282 | I16: 1.268861454 | J16: Ok | K16: 7.346153846 | L16: 1.748971193 | M16: Ok
A17: cLac | B17: 27.2 | C17: 1.226 | F17: 9.066666667 | G17: 1.176315789 | H17: 1.194736842 | I17: 1.565995526 | J17: Ok | K17: 1.1 | L17: 6.487695749 | M17: Ok
A18: cCreat | B18: 5.3 | C18: 127.118 | F18: 1.766666667 | G18: 133.5 | K18: 127.1176471 | L18: 4.78078872 | M18: Ikke Ok

Sheet CV Bio
A1: Kontroll level 1
A2: Analytt | B2: Biological variation | D2: Mål for IMPRESISJON % | G2: Våre resultat
D3: optimalt | E3: ønskelig I(%) | F3: minimum | G3: ABL MB | J3: ABL PLAB | M3: ABL HOV
B4: CVw | C4: CVb | D4: 0,25*CVw | E4: 0,50*CVw | F4: 0,75*CVw | G4: Nivå bd | H4: CVbd | I4: Måloppnåelse Impresisjon | J4: Nivå bd | K4: CVbd | L4: Måloppnåelse Impresisjon bio | M4: Nivå bd | N4: CVbd | O4: Måloppnåelse Impresisjon
A5: pH | B5: 3.5 | C5: 2 | D5: =0.25*B5 -> 0.875 | E5: =0.5*B5 -> 1.75 | F5: =0.75*B5 -> 2.625 | G5: 7.103 | H5: 0.04 | I5: =IF(B5<>"",(IF(H5<D5,"Optimal",IF(H5<E5,"Ønskelig",IF(H5<F5,"Minimum","Ikke ok")))),"Mangler bio") -> Optimal | J5: 7.104 | K5: 0.03 | L5: =IF(B5<>"",(IF(K5<D5,"Optimal",IF(K5<E5,"Ønskelig",IF(K5<F5,"Minimum","Ikke ok")))),"Mangler bio") -> Optimal | M5: 7.107 | N5: 0.02 | O5: =IF(B5<>"",(IF(N5<D5,"Optimal",IF(N5<E5,"Ønskelig",IF(N5<F5,"Minimum","Ikke ok")))),"Mangler bio") -> Optimal
A6: pCO2 | B6: 4.8 | C6: 5.3 | D6: =0.25*B6 -> 1.2 | E6: =0.5*B6 -> 2.4 | F6: =0.75*B6 -> 3.6 | G6: 8.928 | H6: 1.57 | I6: =IF(B6<>"",(IF(H6<D6,"Optimal",IF(H6<E6,"Ønskelig",IF(H6<F6,"Minimum","Ikke ok")))),"Mangler bio") -> Ønskelig | J6: 8.89 | K6: 1.22 | L6: Ønskelig | M6: 8.76 | N6: 0.93 | O6: =IF(B6<>"",(IF(N6<D6,"Optimal",IF(N6<E6,"Ønskelig",IF(N6<F6,"Minimum","Ikke ok")))),"Mangler bio") -> Optimal
A7: ctHb | B7: 2.8 | C7: 6.6 | D7: 0.7 | E7: 1.4 | F7: 2.1 | G7: 8.2 | H7: 0 | I7: Optimal | J7: 8.14 | K7: 0.61 | L7: Optimal | M7: 8.18 | N7: 0.46 | O7: Optimal
A8: cNa+ | B8: 0.7 | C8: 1 | D8: 0.175 | E8: 0.35 | F8: 0.525 | G8: 160.15 | H8: 0.79 | I8: Ikke ok | J8: 159.41 | K8: 0.31 | L8: Ønskelig | M8: 16.04 | N8: 0.49 | O8: Minimum
A9: cK+ | B9: 4.8 | C9: 5.6 | D9: 1.2 | E9: 2.4 | F9: 3.6 | G9: 1.8 | H9: 0 | I9: Optimal | J9: 1.8 | K9: 0 | L9: Optimal | M9: 1.7 | N9: 0 | O9: Optimal
A10: cCa2+ | B10: 1.9 | C10: 2.8 | D10: 0.475 | E10: 0.95 | F10: 1.425 | G10: 1.059 | H10: 0.92 | I10: Ønskelig | J10: 1.049 | K10: 0.8 | L10: Ønskelig | M10: 1.04 | N10: 0.73 | O10: Ønskelig
A11: cCl- | B11: 1.2 | C11: 1.5 | D11: 0.3 | E11: 0.6 | F11: 0.9 | G11: 120.13 | H11: 0.74 | I11: Minimum | M11: 119.96 | N11: 0.56 | O11: Ønskelig
A12: cGlu | B12: 5.7 | C12: 6.9 | D12: 1.425 | E12: 2.85 | F12: 4.275 | G12: 1.55 | H12: 3.27 | I12: Minimum | J12: 1.43 | K12: 3.29 | L12: =IF(B12<>"",(IF(K12<D12,"Optimal",IF(K12<E12,"Ønskelig",IF(K12<F12,"Minimum","Ikke ok")))),"Mangler bio") -> Minimum | M12: 1.62 | N12: 2.32 | O12: Ønskelig
A13: cLac | B13: 27.2 | C13: 16.7 | D13: 6.8 | E13: 13.6 | F13: 20.4 | G13: 4.34 | H13: 4.32 | I13: Optimal | J13: 4.34 | K13: 2.09 | L13: =IF(B13<>"",(IF(K13<D13,"Optimal",IF(K13<E13,"Ønskelig",IF(K13<F13,"Minimum","Ikke ok")))),"Mangler bio") -> Optimal | M13: 4.37 | N13: 1.93 | O13: Optimal
A14: cCreat | B14: 5.3 | C14: 14.2 | D14: 1.325 | E14: 2.65 | F14: 3.975 | M14: 261.44 | N14: 3.05 | O14: Minimum
A16: Kontroll level 3
A17: Analytt | B17: Biological variation | D17: Mål for IMPRESISJON % | G17: Våre resultat
D18: optimalt | E18: ønskelig I(%) | F18: minimum | G18: ABL MB | J18: ABL PLAB | M18: ABL HOV
B19: CVw | C19: CVb | D19: 0,25*CVw | E19: 0,50*CVw | F19: 0,75*CVw | G19: Nivå bd | H19: CVbd | I19: Måloppnåelse Impresisjon | J19: Nivå bd | K19: CVbd | L19: Måloppnåelse Impresisjon bio | M19: Nivå bd | N19: CVbd | O19: Måloppnåelse Impresisjon
A20: pH | B20: 3.5 | C20: 2 | D20: =0.25*B20 -> 0.875 | E20: =0.5*B20 -> 1.75 | F20: =0.75*B20 -> 2.625 | G20: 7.58 | H20: 0.02 | I20: =IF(B20<>"",(IF(H20<D20,"Optimal",IF(H20<E20,"Ønskelig",IF(H20<F20,"Minimum","Ikke ok")))),"Mangler bio") -> Optimal | J20: 7.58 | K20: 0.02 | L20: =IF(B20<>"",(IF(K20<D20,"Optimal",IF(K20<E20,"Ønskelig",IF(K20<F20,"Minimum","Ikke ok")))),"Mangler bio") -> Optimal | M20: 7.577 | N20: 0.01 | O20: =IF(B20<>"",(IF(N20<D20,"Optimal",IF(N20<E20,"Ønskelig",IF(N20<F20,"Minimum","Ikke ok")))),"Mangler bio") -> Optimal
A21: pCO2 | B21: 4.8 | C21: 5.3 | D21: =0.25*B21 -> 1.2 | E21: =0.5*B21 -> 2.4 | F21: =0.75*B21 -> 3.6 | G21: 1.65 | H21: 2.18 | I21: =IF(B21<>"",(IF(H21<D21,"Optimal",IF(H21<E21,"Ønskelig",IF(H21<F21,"Minimum","Ikke ok")))),"Mangler bio") -> Ønskelig | J21: 1.7 | K21: 1.38 | L21: Ønskelig | M21: 1.68 | N21: 1.55 | O21: =IF(B21<>"",(IF(N21<D21,"Optimal",IF(N21<E21,"Ønskelig",IF(N21<F21,"Minimum","Ikke ok")))),"Mangler bio") -> Ønskelig
A22: ctHb | B22: 2.8 | C22: 6.6 | D22: 0.7 | E22: 1.4 | F22: 2.1 | G22: 19.56 | H22: 0.3 | I22: Optimal | J22: 19.32 | K22: 0.45 | L22: Optimal | M22: 19.62 | N22: 0.36 | O22: Optimal
A23: cNa+ | B23: 0.7 | C23: 1 | D23: 0.175 | E23: 0.35 | F23: 0.525 | G23: 127.09 | H23: 0.23 | I23: Ønskelig | J23: 127.28 | K23: 0.41 | L23: Minimum | M23: 128.64 | N23: 0.59 | O23: Ikke ok
A24: cK+ | B24: 4.8 | C24: 5.6 | D24: 1.2 | E24: 2.4 | F24: 3.6 | G24: 5.504 | H24: 0.38 | I24: Optimal | J24: 5.5 | K24: 0.34 | L24: Optimal | M24: 5.496 | N24: 0.36 | O24: Optimal
A25: cCa2+ | B25: 1.9 | C25: 2.8 | D25: 0.475 | E25: 0.95 | F25: 1.425 | G25: 0.542 | H25: 0.96 | I25: Minimum | J25: 0.541 | K25: 0.9 | L25: Ønskelig | M25: 0.52 | N25: 0.67 | O25: Ønskelig
A26: cCl- | B26: 1.2 | C26: 1.5 | D26: 0.3 | E26: 0.6 | F26: 0.9 | G26: 67.33 | H26: 0.98 | I26: Ikke ok | M26: 66.12 | N26: 0.91 | O26: Ikke ok
A27: cGlu | B27: 5.7 | C27: 6.9 | D27: 1.425 | E27: 2.85 | F27: 4.275 | G27: 13.95 | H27: 1.22 | I27: Optimal | J27: 13.93 | K27: 1.39 | L27: =IF(B27<>"",(IF(K27<D27,"Optimal",IF(K27<E27,"Ønskelig",IF(K27<F27,"Minimum","Ikke ok")))),"Mangler bio") -> Optimal | M27: 13.75 | N27: 1.19 | O27: Optimal
A28: cLac | B28: 27.2 | C28: 16.7 | D28: 6.8 | E28: 13.6 | F28: 20.4 | G28: 10.38 | H28: 4.57 | I28: Optimal | J28: 10.21 | K28: 4.09 | L28: =IF(B28<>"",(IF(K28<D28,"Optimal",IF(K28<E28,"Ønskelig",IF(K28<F28,"Minimum","Ikke ok")))),"Mangler bio") -> Optimal | M28: 10.55 | N28: 5.09 | O28: Optimal
A29: cCreat | B29: 5.3 | C29: 14.2 | D29: 1.325 | E29: 2.65 | F29: 3.975 | M29: 520.16 | N29: 3.68 | O29: Minimum

Sheet CV -735vs835
A1: Kontroll Level 1
A2: Analytt | B2: Våre resultat
B3: ABL 735 (MB) | D3: ABL 835 MB | G3: ABL PLAB | J3: ABL HOV
B4: Nivå Stabil CV 735 | C4: CVa 735 (2011) | D4: Nivå bd | E4: CVbd | F4: Måloppnåelse Impresisjon bio | G4: Nivå bd | H4: CVbd | I4: Måloppnåelse Impresisjon | J4: Nivå bd | K4: CVbd | L4: Måloppnåelse Impresisjon
A5: pO2 | B5: 19.4 | C5: 1.885 | D5: 19.997 | E5: 2.48 | F5: =IF(E5<=$C5,"Ok","Ikke Ok") -> Ikke Ok | G5: 20.107 | H5: 1.84 | I5: =IF(H5<=$C5,"Ok","Ikke Ok") -> Ok | J5: 19.724 | K5: 2.03 | L5: =IF(K5<=$C5,"Ok","Ikke Ok") -> Ikke Ok
A6: sO2 | B6: 49.98 | C6: 0.103 | D6: 50.091 | E6: 0.06 | F6: =IF(E6<=$C6,"Ok","Ikke Ok") -> Ok | G6: 50.09 | H6: 0.06 | I6: =IF(H6<=$C6,"Ok","Ikke Ok") -> Ok | J6: 50.008 | K6: 0.06 | L6: =IF(K6<=$C6,"Ok","Ikke Ok") -> Ok
A7: FCOHb | B7: 5.898 | C7: 4.85 | D7: 6.52 | E7: 2.57 | F7: =IF(E7<=$C7,"Ok","Ikke Ok") -> Ok | G7: 6.55 | H7: 2.1 | I7: =IF(H7<=$C7,"Ok","Ikke Ok") -> Ok | J7: 6.032 | K7: 2.82 | L7: =IF(K7<=$C7,"Ok","Ikke Ok") -> Ok
A9: Kontroll Level 3
A10: Analytt | B10: Våre resultat
B11: ABL 735 (MB) | D11: ABL 835 MB | G11: ABL PLAB | J11: ABL HOV
B12: Nivå Stabil CV 735 | C12: CVa 735 (2011) | D12: Nivå bd | E12: CVbd | F12: Måloppnåelse Impresisjon bio | G12: Nivå bd | H12: CVbd | I12: Måloppnåelse Impresisjon | J12: Nivå bd | K12: CVbd | L12: Måloppnåelse Impresisjon
A13: pO2 | B13: 8.969 | C13: 2.24 | D13: 9.31 | E13: 1.37 | F13: =IF(E13<=$C13,"Ok","Ikke Ok") -> Ok | G13: 9.707 | H13: 2.2 | I13: =IF(H13<=$C13,"Ok","Ikke Ok") -> Ok | J13: 9.713 | K13: 2.24 | L13: =IF(K13<=$C13,"Ok","Ikke Ok") -> Ok
A14: sO2 | B14: 70.25 | C14: 0.25 | D14: 70.448 | E14: 0.07 | F14: =IF(E14<=$C14,"Ok","Ikke Ok") -> Ok | G14: 70.4 | H14: 0 | I14: =IF(H14<=$C14,"Ok","Ikke Ok") -> Ok | J14: 70.196 | K14: 0.03 | L14: =IF(K14<=$C14,"Ok","Ikke Ok") -> Ok
A15: FCOHb | B15: 20.72 | C15: 1.23 | D15: 21.25 | E15: 0.28 | F15: =IF(E15<=$C15,"Ok","Ikke Ok") -> Ok | G15: 21.09 | H15: 0.32 | I15: =IF(H15<=$C15,"Ok","Ikke Ok") -> Ok | J15: 20.496 | K15: 0.26 | L15: =IF(K15<=$C15,"Ok","Ikke Ok") -> Ok
